[Event "Live Chess"]
[Site "Chess.com"]
[Date "2023.05.20"]
[Round "-"]
[White "djw60"]
[Black "McSlash1"]
[Result "0-1"]
[WhiteElo "2100"]
[BlackElo "2066"]
[TimeControl "300"]
[EndTime "10:36:34 PDT"]
[Termination "McSlash1 won on time"]

1. Nf3 {[%clk 0:04:58.8]} 1... Nf6 {[%clk 0:04:58.2]} 2. g3 {[%clk 0:04:55.8]}
2... g6 {[%clk 0:04:57.8]} 3. Bg2 {[%clk 0:04:54.4]} 3... Bg7 {[%clk 0:04:57.3]}
4. O-O {[%clk 0:04:53.8]} 4... O-O {[%clk 0:04:57]} 5. d3 {[%clk 0:04:52.6]}
5... d5 {[%clk 0:04:56.5]} 6. Nbd2 {[%clk 0:04:50.8]} 6... c5 {[%clk 0:04:56.1]}
7. e4 {[%clk 0:04:49.7]} 7... d4 {[%clk 0:04:54.8]} 8. a4 {[%clk 0:04:40.8]}
8... Nc6 {[%clk 0:04:53.1]} 9. Nc4 {[%clk 0:04:39]} 9... Nd7 {[%clk 0:04:52.3]}
10. a5 {[%clk 0:04:34.1]} 10... Rb8 {[%clk 0:04:50.6]} 11. Bd2 {[%clk
0:04:31.9]} 11... b5 {[%clk 0:04:49]} 12. axb6 {[%clk 0:04:30.3]} 12... axb6
{[%clk 0:04:48.9]} 13. Qe2 {[%clk 0:04:24.4]} 13... b5 {[%clk 0:04:47.7]} 14.
Na5 {[%clk 0:04:22.5]} 14... Qc7 {[%clk 0:04:40.4]} 15. Nxc6 {[%clk 0:04:12.2]}
15... Qxc6 {[%clk 0:04:40.3]} 16. c3 {[%clk 0:04:04.6]} 16... e5 {[%clk
0:04:36.5]} 17. b4 {[%clk 0:03:55.3]} 17... Bb7 {[%clk 0:04:29.3]} 18. Rfc1
{[%clk 0:03:49.5]} 18... f5 {[%clk 0:04:20]} 19. cxd4 {[%clk 0:03:43]} 19...
exd4 {[%clk 0:04:16.7]} 20. bxc5 {[%clk 0:03:36.8]} 20... fxe4 {[%clk
0:04:07.4]} 21. Ng5 {[%clk 0:03:29.5]} 21... Qf6 {[%clk 0:02:20.4]} 22. Nxe4
{[%clk 0:03:23.3]} 22... Bxe4 {[%clk 0:02:18.8]} 23. Bxe4 {[%clk 0:03:20.6]}
23... Rbe8 {[%clk 0:02:18.3]} 24. c6 {[%clk 0:03:10.3]} 24... Ne5 {[%clk
0:02:14]} 25. f4 {[%clk 0:03:06.5]} 25... Nxc6 {[%clk 0:02:02.2]} 26. Rxc6
{[%clk 0:02:26.2]} 26... Qxc6 {[%clk 0:01:59.4]} 27. Bxc6 {[%clk 0:02:25.3]}
27... Rxe2 {[%clk 0:01:58.2]} 28. Bb4 {[%clk 0:02:23.3]} 28... Rc8 {[%clk
0:01:51]} 29. Bd5+ {[%clk 0:02:18.5]} 29... Kh8 {[%clk 0:01:48.2]} 30. Bf3
{[%clk 0:02:11.7]} 30... Rb2 {[%clk 0:01:44.7]} 31. Ba3 {[%clk 0:02:06.1]} 31...
Rb3 {[%clk 0:01:41.6]} 32. Be4 {[%clk 0:01:59.7]} 32... b4 {[%clk 0:01:33]} 33.
Bc1 {[%clk 0:01:54]} 33... Rbc3 {[%clk 0:01:25.8]} 34. Bd2 {[%clk 0:01:51.3]}
34... Rc2 {[%clk 0:01:22.6]} 35. Bxb4 {[%clk 0:01:48.1]} 35... Rc1+ {[%clk
0:01:15.5]} 36. Rxc1 {[%clk 0:01:46.7]} 36... Rxc1+ {[%clk 0:01:15.4]} 37. Kg2
{[%clk 0:01:45]} 37... Kg8 {[%clk 0:01:14.2]} 38. h4 {[%clk 0:01:41.8]} 38...
Kf7 {[%clk 0:01:12.3]} 39. h5 {[%clk 0:01:35.8]} 39... Rb1 {[%clk 0:01:04]} 40.
Bd6 {[%clk 0:01:31.8]} 40... Ke6 {[%clk 0:01:00.4]} 41. Bc7 {[%clk 0:01:28.2]}
41... Rc1 {[%clk 0:00:56.2]} 42. Bd8 {[%clk 0:01:17.3]} 42... gxh5 {[%clk
0:00:51.1]} 43. Bxh7 {[%clk 0:01:15.1]} 43... Bf6 {[%clk 0:00:39.7]} 44. Bxf6
{[%clk 0:01:01.9]} 44... Kxf6 {[%clk 0:00:39.6]} 45. Kf3 {[%clk 0:00:59.9]}
45... Rc2 {[%clk 0:00:37.2]} 46. Be4 {[%clk 0:00:56.7]} 46... Ke6 {[%clk
0:00:34.3]} 47. Bb7 {[%clk 0:00:53.3]} 47... Rb2 {[%clk 0:00:32.6]} 48. Be4
{[%clk 0:00:52.1]} 48... Rb1 {[%clk 0:00:30.9]} 49. Bg6 {[%clk 0:00:49.2]} 49...
Rh1 {[%clk 0:00:23.9]} 50. Ke4 {[%clk 0:00:45]} 50... Kf6 {[%clk 0:00:21.2]} 51.
Be8 {[%clk 0:00:41.7]} 51... h4 {[%clk 0:00:19.5]} 52. Bc6 {[%clk 0:00:29.5]}
52... h3 {[%clk 0:00:18.2]} 53. Kxd4 {[%clk 0:00:24.9]} 53... Re1 {[%clk
0:00:17.8]} 54. g4 {[%clk 0:00:23.2]} 54... h2 {[%clk 0:00:17.2]} 55. g5+ {[%clk
0:00:22.4]} 55... Kf7 {[%clk 0:00:16.6]} 56. f5 {[%clk 0:00:21.2]} 56... h1=Q
{[%clk 0:00:14.8]} 57. Bxh1 {[%clk 0:00:20.6]} 57... Rxh1 {[%clk 0:00:14.7]} 58.
Ke5 {[%clk 0:00:19.5]} 58... Re1+ {[%clk 0:00:13.5]} 59. Kf4 {[%clk 0:00:18.7]}
59... Rf1+ {[%clk 0:00:13.1]} 60. Ke5 {[%clk 0:00:17.6]} 60... Kg7 {[%clk
0:00:13]} 61. d4 {[%clk 0:00:15]} 61... Rd1 {[%clk 0:00:12.9]} 62. d5 {[%clk
0:00:14.1]} 62... Kf7 {[%clk 0:00:12.6]} 63. d6 {[%clk 0:00:12.9]} 63... Ke8
{[%clk 0:00:11.7]} 64. g6 {[%clk 0:00:12]} 64... Kd7 {[%clk 0:00:11.6]} 65. f6
{[%clk 0:00:10.6]} 65... Rg1 {[%clk 0:00:11.5]} 66. g7 {[%clk 0:00:08.6]} 66...
Re1+ {[%clk 0:00:09.5]} 67. Kf5 {[%clk 0:00:07.6]} 67... Rf1+ {[%clk 0:00:09.4]}
68. Kg6 {[%clk 0:00:06.7]} 68... Kxd6 {[%clk 0:00:09]} 69. f7 {[%clk 0:00:06]}
69... Ke7 {[%clk 0:00:07.7]} 70. g8=Q {[%clk 0:00:05.1]} 70... Rg1+ {[%clk
0:00:06.4]} 71. Kh7 {[%clk 0:00:03.9]} 71... Rh1+ {[%clk 0:00:05.9]} 72. Kg7
{[%clk 0:00:02.6]} 72... Rg1+ {[%clk 0:00:05.4]} 73. Kh6 {[%clk 0:00:01]} 73...
Rh1+ {[%clk 0:00:04.7]} 0-1

[Event "Live Chess"]
[Site "Chess.com"]
[Date "2023.05.20"]
[Round "-"]
[White "GMHarry-youtube"]
[Black "boilerboy1"]
[Result "1-0"]
[WhiteElo "2154"]
[BlackElo "1085"]
[TimeControl "300"]
[EndTime "10:36:35 PDT"]
[Termination "GMHarry-youtube won by checkmate"]

1. e4 {[%clk 0:04:58.1]} 1... e5 {[%clk 0:04:57.6]} 2. g3 {[%clk 0:04:55.9]}
2... Nf6 {[%clk 0:04:54.5]} 3. d4 {[%clk 0:04:54.7]} 3... exd4 {[%clk
0:04:52.8]} 4. e5 {[%clk 0:04:54.6]} 4... Nd5 {[%clk 0:04:50.7]} 5. c4 {[%clk
0:04:54.2]} 5... Ne7 {[%clk 0:04:45]} 6. Qxd4 {[%clk 0:04:49.1]} 6... Nbc6
{[%clk 0:04:40.2]} 7. Qe3 {[%clk 0:04:42.2]} 7... Nf5 {[%clk 0:04:36.7]} 8. Qe2
{[%clk 0:04:39.8]} 8... Ncd4 {[%clk 0:04:24.4]} 9. Qe4 {[%clk 0:04:37.2]} 9...
Bc5 {[%clk 0:04:14]} 10. a3 {[%clk 0:04:31.1]} 10... O-O {[%clk 0:04:06.9]} 11.
b4 {[%clk 0:04:23.9]} 11... Be7 {[%clk 0:03:59.1]} 12. Bb2 {[%clk 0:04:19.8]}
12... d6 {[%clk 0:03:47.1]} 13. Bxd4 {[%clk 0:04:14.7]} 13... dxe5 {[%clk
0:03:43.6]} 14. Bxe5 {[%clk 0:04:12.4]} 14... Be6 {[%clk 0:03:35.8]} 15. Bd3
{[%clk 0:04:06.2]} 15... g6 {[%clk 0:03:24.5]} 16. Ne2 {[%clk 0:04:02.3]} 16...
c6 {[%clk 0:03:12.2]} 17. Nd4 {[%clk 0:04:01]} 17... Nxd4 {[%clk 0:03:07.2]} 18.
Bxd4 {[%clk 0:04:00.9]} 18... Bf6 {[%clk 0:03:03.9]} 19. Bxf6 {[%clk 0:03:56.5]}
19... Qxf6 {[%clk 0:03:01.9]} 20. Nd2 {[%clk 0:03:55.2]} 20... Qxa1+ {[%clk
0:02:58.1]} 21. Bb1 {[%clk 0:03:54.3]} 21... Qxa3 {[%clk 0:02:48.6]} 22. h4
{[%clk 0:03:51.1]} 22... Qxb4 {[%clk 0:02:46.5]} 23. h5 {[%clk 0:03:49.4]} 23...
Bf5 {[%clk 0:02:42]} 24. Qd4 {[%clk 0:03:44.1]} 24... Bxb1 {[%clk 0:02:38]} 25.
h6 {[%clk 0:03:40.7]} 25... f6 {[%clk 0:02:35.7]} 26. Qd7 {[%clk 0:03:38.8]}
26... Rfe8+ {[%clk 0:02:20]} 27. Kf1 {[%clk 0:03:34.4]} 27... Qxd2 {[%clk
0:02:15.8]} 28. Qg7# {[%clk 0:03:32.9]} 1-0

[Event "Live Chess"]
[Site "Chess.com"]
[Date "2023.05.20"]
[Round "-"]
[White "DenDenTie"]
[Black "KuriyamaMiraiUA"]
[Result "0-1"]
[WhiteElo "689"]
[BlackElo "676"]
[TimeControl "300"]
[EndTime "10:36:39 PDT"]
[Termination "KuriyamaMiraiUA won by resignation"]

1. e4 {[%clk 0:04:38]} 1... c6 {[%clk 0:04:58.3]} 2. Nf3 {[%clk 0:04:36.7]} 2...
d5 {[%clk 0:04:55.5]} 3. exd5 {[%clk 0:04:34.7]} 3... cxd5 {[%clk 0:04:49.8]} 4.
d4 {[%clk 0:04:34.1]} 4... Nc6 {[%clk 0:04:35.8]} 5. Nc3 {[%clk 0:04:24]} 5...
e6 {[%clk 0:04:32.2]} 6. Bb5 {[%clk 0:04:21.4]} 6... Bb4 {[%clk 0:04:21.3]} 7.
Bd2 {[%clk 0:04:17.1]} 7... a6 {[%clk 0:04:01.9]} 8. Bxc6+ {[%clk 0:04:09]} 8...
bxc6 {[%clk 0:04:00.6]} 9. Ne5 {[%clk 0:04:08.1]} 9... Ne7 {[%clk 0:03:34.1]}
10. O-O {[%clk 0:03:59.1]} 10... O-O {[%clk 0:03:32.6]} 11. Bg5 {[%clk
0:03:52.5]} 11... f6 {[%clk 0:03:31.1]} 12. Bxf6 {[%clk 0:03:34.6]} 12... Rxf6
{[%clk 0:03:24.8]} 13. a3 {[%clk 0:03:22.8]} 13... Bd6 {[%clk 0:03:21.9]} 14.
Nd3 {[%clk 0:03:17.8]} 14... Nf5 {[%clk 0:03:10.8]} 15. Qh5 {[%clk 0:03:08.5]}
15... Nxd4 {[%clk 0:02:57.3]} 16. Ne5 {[%clk 0:02:44.8]} 16... Rf5 {[%clk
0:02:35.7]} 0-1

[Event "Live Chess"]
[Site "Chess.com"]
[Date "2023.05.20"]
[Round "-"]
[White "LutherSullivan"]
[Black "LodeshChess"]
[Result "1-0"]
[WhiteElo "1878"]
[BlackElo "927"]
[TimeControl "300"]
[EndTime "10:36:45 PDT"]
[Termination "LutherSullivan won by checkmate"]

1. d4 {[%clk 0:04:58.4]} 1... Nf6 {[%clk 0:04:57.6]} 2. Bg5 {[%clk 0:04:55.9]}
2... e6 {[%clk 0:04:56]} 3. e4 {[%clk 0:04:54.7]} 3... h6 {[%clk 0:04:55.2]} 4.
Bxf6 {[%clk 0:04:53.8]} 4... Qxf6 {[%clk 0:04:54]} 5. c3 {[%clk 0:04:53.1]} 5...
Be7 {[%clk 0:04:50.3]} 6. Nd2 {[%clk 0:04:52.1]} 6... O-O {[%clk 0:04:48.7]} 7.
Bd3 {[%clk 0:04:50.7]} 7... Nc6 {[%clk 0:04:47.2]} 8. Ne2 {[%clk 0:04:49.6]}
8... e5 {[%clk 0:04:43]} 9. d5 {[%clk 0:04:46.9]} 9... Nd8 {[%clk 0:04:32.7]}
10. O-O {[%clk 0:04:45.5]} 10... d6 {[%clk 0:04:31.7]} 11. h3 {[%clk 0:04:39.8]}
11... Qg5 {[%clk 0:04:29.2]} 12. Nf3 {[%clk 0:04:20.4]} 12... Qg6 {[%clk
0:04:16.8]} 13. Ng3 {[%clk 0:04:16.3]} 13... Bh4 {[%clk 0:04:08.8]} 14. Kh2
{[%clk 0:04:14.5]} 14... Bxg3+ {[%clk 0:04:07.8]} 15. fxg3 {[%clk 0:04:13.6]}
15... c6 {[%clk 0:03:53.8]} 16. c4 {[%clk 0:04:12.3]} 16... c5 {[%clk
0:03:49.7]} 17. Qc2 {[%clk 0:04:05.6]} 17... f6 {[%clk 0:03:41]} 18. Nh4 {[%clk
0:03:57.7]} 18... Qh5 {[%clk 0:03:21.3]} 19. Be2 {[%clk 0:03:55.1]} 19... Qe8
{[%clk 0:03:13.8]} 20. Qd1 {[%clk 0:03:50]} 20... Nf7 {[%clk 0:03:11.2]} 21. Bh5
{[%clk 0:03:47.8]} 21... Qd7 {[%clk 0:02:57.2]} 22. Ng6 {[%clk 0:02:57.9]} 22...
Re8 {[%clk 0:02:40.6]} 23. Qe2 {[%clk 0:02:43.2]} 23... Ng5 {[%clk 0:02:33.8]}
24. h4 {[%clk 0:02:34.3]} 24... Nh7 {[%clk 0:02:15]} 25. Rf2 {[%clk 0:02:29.7]}
25... Nf8 {[%clk 0:02:13.9]} 26. Raf1 {[%clk 0:02:25.5]} 26... Nxg6 {[%clk
0:02:07.1]} 27. Bxg6 {[%clk 0:02:24.1]} 27... Rf8 {[%clk 0:02:06.3]} 28. Bf5
{[%clk 0:02:09.2]} 28... Qe7 {[%clk 0:01:58.9]} 29. g4 {[%clk 0:02:05.9]} 29...
Bxf5 {[%clk 0:01:40.2]} 30. gxf5 {[%clk 0:02:04.2]} 30... b6 {[%clk 0:01:32.6]}
31. Rf3 {[%clk 0:01:55.7]} 31... Rf7 {[%clk 0:01:31.8]} 32. Rg3 {[%clk
0:01:36.7]} 32... Qb7 {[%clk 0:01:17.7]} 33. Rff3 {[%clk 0:01:33.4]} 33... Re8
{[%clk 0:01:15.9]} 34. Qd2 {[%clk 0:01:27.2]} 34... Kh7 {[%clk 0:01:07.8]} 35.
Rg6 {[%clk 0:01:25.6]} 35... Rg8 {[%clk 0:00:47]} 36. Ra3 {[%clk 0:01:21.5]}
36... a6 {[%clk 0:00:42.9]} 37. Rb3 {[%clk 0:01:18.9]} 37... b5 {[%clk
0:00:40.1]} 38. Qa5 {[%clk 0:01:16.8]} 38... b4 {[%clk 0:00:30.6]} 39. g4 {[%clk
0:01:12]} 39... Rb8 {[%clk 0:00:19.5]} 40. g5 {[%clk 0:01:07.7]} 40... fxg5
{[%clk 0:00:18.4]} 41. hxg5 {[%clk 0:01:07]} 41... hxg5 {[%clk 0:00:17.9]} 42.
Rh3+ {[%clk 0:01:04.9]} 42... Kg8 {[%clk 0:00:17.2]} 43. Rxg5 {[%clk 0:01:01]}
43... Qb6 {[%clk 0:00:14.6]} 44. Qa4 {[%clk 0:00:56.8]} 44... a5 {[%clk
0:00:11.7]} 45. Rg6 {[%clk 0:00:55.1]} 45... Rf6 {[%clk 0:00:09.2]} 46. Rhg3
{[%clk 0:00:52.1]} 46... Rxg6 {[%clk 0:00:08.4]} 47. Rxg6 {[%clk 0:00:51.7]}
47... Rb7 {[%clk 0:00:07.9]} 48. Qe8+ {[%clk 0:00:49.5]} 48... Kh7 {[%clk
0:00:07.1]} 49. Re6 {[%clk 0:00:46.3]} 49... Qa7 {[%clk 0:00:04.8]} 50. Qh5+
{[%clk 0:00:45]} 50... Kg8 {[%clk 0:00:04]} 51. Re8# {[%clk 0:00:44.4]} 1-0

[Event "Live Chess"]
[Site "Chess.com"]
[Date "2023.05.20"]
[Round "-"]
[White "Alan_Richardson"]
[Black "Tushinskiy"]
[Result "0-1"]
[WhiteElo "1675"]
[BlackElo "2106"]
[TimeControl "300"]
[EndTime "10:36:48 PDT"]
[Termination "Tushinskiy won by resignation"]

1. d4 {[%clk 0:04:58.6]} 1... d5 {[%clk 0:04:52.9]} 2. Nf3 {[%clk 0:04:55.6]}
2... c6 {[%clk 0:04:52.8]} 3. Bf4 {[%clk 0:04:54.2]} 3... Nf6 {[%clk 0:04:52.7]}
4. e3 {[%clk 0:04:49.2]} 4... e6 {[%clk 0:04:51.7]} 5. c4 {[%clk 0:04:43.8]}
5... Bd6 {[%clk 0:04:50.7]} 6. Bg3 {[%clk 0:04:30.5]} 6... Qe7 {[%clk
0:04:47.5]} 7. Nc3 {[%clk 0:04:27.3]} 7... Nbd7 {[%clk 0:04:44.1]} 8. Ne5 {[%clk
0:04:23]} 8... O-O {[%clk 0:04:41.9]} 9. f4 {[%clk 0:04:14.1]} 9... Re8 {[%clk
0:04:36.9]} 10. Bd3 {[%clk 0:04:04.2]} 10... Nf8 {[%clk 0:04:33.3]} 11. O-O
{[%clk 0:03:59.2]} 11... N6d7 {[%clk 0:04:30.2]} 12. f5 {[%clk 0:03:22.6]} 12...
exf5 {[%clk 0:04:15.2]} 13. Bxf5 {[%clk 0:03:07.2]} 13... Nxe5 {[%clk 0:04:12]}
14. dxe5 {[%clk 0:02:40]} 14... Bxe5 {[%clk 0:04:09.2]} 15. cxd5 {[%clk
0:02:32.9]} 15... Bxg3 {[%clk 0:04:06.3]} 16. hxg3 {[%clk 0:02:30.9]} 16...
Qxe3+ {[%clk 0:04:02.1]} 17. Kh2 {[%clk 0:02:21.8]} 17... Bxf5 {[%clk
0:03:42.6]} 18. Rxf5 {[%clk 0:02:19.4]} 18... cxd5 {[%clk 0:03:42.5]} 19. Nxd5
{[%clk 0:02:13.4]} 19... Qh6+ {[%clk 0:03:40.5]} 20. Qh5 {[%clk 0:01:59.2]}
20... Qxh5+ {[%clk 0:03:35.1]} 21. Rxh5 {[%clk 0:01:58]} 21... Rad8 {[%clk
0:03:34.6]} 22. Rd1 {[%clk 0:01:44]} 22... Ne6 {[%clk 0:03:21.1]} 23. Ne7+
{[%clk 0:01:24]} 23... Rxe7 {[%clk 0:03:19.1]} 0-1

[Event "Live Chess"]
[Site "Chess.com"]
[Date "2023.05.20"]
[Round "-"]
[White "garyjc"]
[Black "Duke_of_Bebington"]
[Result "0-1"]
[WhiteElo "1024"]
[BlackElo "1584"]
[TimeControl "300"]
[EndTime "10:36:50 PDT"]
[Termination "Duke_of_Bebington won by resignation"]

1. e4 {[%clk 0:04:57.7]} 1... e5 {[%clk 0:04:58.9]} 2. Nf3 {[%clk 0:04:55.6]}
2... Nf6 {[%clk 0:04:57.9]} 3. Nxe5 {[%clk 0:04:49.6]} 3... d6 {[%clk
0:04:56.9]} 4. Nf3 {[%clk 0:04:43.2]} 4... Nxe4 {[%clk 0:04:55.5]} 5. Qe2 {[%clk
0:04:42.5]} 5... Qe7 {[%clk 0:04:54.1]} 6. d3 {[%clk 0:04:40.7]} 6... Nf6 {[%clk
0:04:53]} 7. Be3 {[%clk 0:04:33]} 7... d5 {[%clk 0:04:47.4]} 8. Nd4 {[%clk
0:04:21]} 8... c5 {[%clk 0:04:39.3]} 9. Nf5 {[%clk 0:04:19.6]} 9... Bxf5 {[%clk
0:04:37.3]} 10. Bxc5 {[%clk 0:04:06.5]} 10... Qxe2+ {[%clk 0:04:34.2]} 11. Bxe2
{[%clk 0:04:03.4]} 11... Bxc5 {[%clk 0:04:34.1]} 12. Nc3 {[%clk 0:04:01.2]}
12... Nc6 {[%clk 0:04:29.9]} 13. O-O {[%clk 0:04:00.1]} 13... O-O {[%clk
0:04:28.4]} 14. a3 {[%clk 0:03:57.5]} 14... Rfe8 {[%clk 0:04:27.3]} 15. b4
{[%clk 0:03:54.6]} 15... Bd4 {[%clk 0:04:25.6]} 0-1

[Event "Live Chess"]
[Site "Chess.com"]
[Date "2023.05.20"]
[Round "-"]
[White "Horseymobile"]
[Black "jameskwong"]
[Result "0-1"]
[WhiteElo "1250"]
[BlackElo "2162"]
[TimeControl "300"]
[EndTime "10:36:51 PDT"]
[Termination "jameskwong won on time"]

1. d4 {[%clk 0:04:55.2]} 1... Nf6 {[%clk 0:04:58]} 2. c4 {[%clk 0:04:53]} 2...
e6 {[%clk 0:04:56.2]} 3. Nc3 {[%clk 0:04:51.6]} 3... Bb4 {[%clk 0:04:55.3]} 4.
Qc2 {[%clk 0:04:51.2]} 4... O-O {[%clk 0:04:53.3]} 5. Bg5 {[%clk 0:04:45.5]}
5... d6 {[%clk 0:04:30.3]} 6. e3 {[%clk 0:04:32.7]} 6... Nc6 {[%clk 0:04:26.6]}
7. Bd3 {[%clk 0:04:28.8]} 7... h6 {[%clk 0:04:21.4]} 8. Bh4 {[%clk 0:04:27.1]}
8... e5 {[%clk 0:04:19.2]} 9. d5 {[%clk 0:04:10.5]} 9... Nb8 {[%clk 0:04:17.4]}
10. O-O-O {[%clk 0:03:48.5]} 10... Nbd7 {[%clk 0:04:13.5]} 11. Ne4 {[%clk
0:03:22.4]} 11... c6 {[%clk 0:03:31.7]} 12. a3 {[%clk 0:02:15]} 12... Bc5 {[%clk
0:03:19.8]} 13. b4 {[%clk 0:02:09.8]} 13... Bb6 {[%clk 0:03:18.4]} 14. Nxd6
{[%clk 0:02:03.8]} 14... cxd5 {[%clk 0:03:16.4]} 15. Bf5 {[%clk 0:01:28.2]}
15... Bc7 {[%clk 0:03:00.7]} 16. Nb5 {[%clk 0:01:19.7]} 16... a6 {[%clk
0:02:48.8]} 17. Nc3 {[%clk 0:01:07.3]} 17... Nb6 {[%clk 0:02:30.6]} 18. c5
{[%clk 0:00:39.2]} 18... Bxf5 {[%clk 0:02:09.9]} 19. Qxf5 {[%clk 0:00:31.9]}
19... Nc4 {[%clk 0:02:02.6]} 20. Bxf6 {[%clk 0:00:19.1]} 20... Qxf6 {[%clk
0:01:56.8]} 21. Qxf6 {[%clk 0:00:17.3]} 21... gxf6 {[%clk 0:01:56.7]} 22. Rxd5
{[%clk 0:00:16.5]} 22... Rfd8 {[%clk 0:01:51.7]} 23. Nf3 {[%clk 0:00:13.5]}
23... Nxa3 {[%clk 0:01:46.6]} 24. Rhd1 {[%clk 0:00:11.5]} 24... Nb5 {[%clk
0:01:26.4]} 25. Ne4 {[%clk 0:00:10.3]} 25... Kg7 {[%clk 0:01:21.3]} 26. Nh4
{[%clk 0:00:08.3]} 26... Rxd5 {[%clk 0:01:13.5]} 27. Rxd5 {[%clk 0:00:06.7]}
27... Bd8 {[%clk 0:01:06.7]} 28. Nf5+ {[%clk 0:00:04]} 28... Kg6 {[%clk
0:01:04.4]} 29. g4 {[%clk 0:00:03.6]} 29... h5 {[%clk 0:01:02.5]} 30. f3 {[%clk
0:00:02.1]} 30... hxg4 {[%clk 0:00:55.5]} 31. fxg4 {[%clk 0:00:02]} 31... a5
{[%clk 0:00:45.8]} 32. Rd7 {[%clk 0:00:00.9]} 32... axb4 {[%clk 0:00:42.9]} 33.
Rxb7 {[%clk 0:00:00.4]} 33... Nc3 {[%clk 0:00:40.7]} 0-1

[Event "Live Chess"]
[Site "Chess.com"]
[Date "2023.05.20"]
[Round "-"]
[White "Ra2orLeaf"]
[Black "siddu198"]
[Result "0-1"]
[WhiteElo "1141"]
[BlackElo "1643"]
[TimeControl "300"]
[EndTime "10:36:52 PDT"]
[Termination "siddu198 won by resignation"]

1. f4 {[%clk 0:04:56.5]} 1... d5 {[%clk 0:04:59.1]} 2. Nf3 {[%clk 0:04:56.4]}
2... d4 {[%clk 0:04:58.2]} 3. e3 {[%clk 0:04:54]} 3... dxe3 {[%clk 0:04:57]} 4.
dxe3 {[%clk 0:04:53.9]} 4... Qxd1+ {[%clk 0:04:55.8]} 5. Kxd1 {[%clk 0:04:53.8]}
5... Bg4 {[%clk 0:04:54.8]} 6. Bd2 {[%clk 0:04:53.7]} 6... Bxf3+ {[%clk
0:04:54.6]} 7. gxf3 {[%clk 0:04:52.9]} 7... Nc6 {[%clk 0:04:54.3]} 8. Nc3 {[%clk
0:04:51.6]} 8... O-O-O {[%clk 0:04:53.9]} 9. a4 {[%clk 0:04:50.1]} 9... f6
{[%clk 0:04:51.7]} 10. a5 {[%clk 0:04:48.5]} 10... e5 {[%clk 0:04:50.4]} 11.
fxe5 {[%clk 0:04:47.1]} 11... Nxe5 {[%clk 0:04:49]} 12. Be2 {[%clk 0:04:43.9]}
12... Bb4 {[%clk 0:04:43.6]} 13. a6 {[%clk 0:04:40.5]} 13... b6 {[%clk 0:04:41]}
14. Ne4 {[%clk 0:04:25.1]} 14... f5 {[%clk 0:04:34.7]} 15. Nc3 {[%clk
0:04:21.6]} 15... Bxc3 {[%clk 0:04:33.7]} 16. bxc3 {[%clk 0:04:19.9]} 16... Nf6
{[%clk 0:04:30.3]} 17. f4 {[%clk 0:04:11.7]} 17... Neg4 {[%clk 0:04:25.8]} 18.
Ke1 {[%clk 0:04:02.5]} 18... Rhe8 {[%clk 0:04:06]} 19. h3 {[%clk 0:03:52.6]}
19... Nxe3 {[%clk 0:04:03.1]} 20. Bxe3 {[%clk 0:03:47.1]} 20... Rxe3 {[%clk
0:04:02.8]} 21. Kf2 {[%clk 0:03:46.4]} 21... Rde8 {[%clk 0:04:02.2]} 22. Rhe1
{[%clk 0:03:45]} 22... Rxh3 {[%clk 0:03:49.2]} 23. Bb5 {[%clk 0:03:31.9]} 23...
Rxe1 {[%clk 0:03:23.6]} 24. Rxe1 {[%clk 0:03:31.8]} 24... Ne4+ {[%clk
0:03:14.2]} 25. Kg2 {[%clk 0:03:21.8]} 25... Rg3+ {[%clk 0:02:58.1]} 26. Kh2
{[%clk 0:03:21]} 26... Rxc3 {[%clk 0:02:52.9]} 27. Rd1 {[%clk 0:02:50]} 27...
Rxc2+ {[%clk 0:02:48.1]} 28. Kh3 {[%clk 0:02:47.3]} 28... Nf2+ {[%clk
0:02:45.3]} 29. Kh4 {[%clk 0:02:45.3]} 29... Nxd1 {[%clk 0:02:45.2]} 0-1

[Event "Live Chess"]
[Site "Chess.com"]
[Date "2023.05.20"]
[Round "-"]
[White "nigelst"]
[Black "lucaskk818"]
[Result "0-1"]
[WhiteElo "1835"]
[BlackElo "1878"]
[TimeControl "300"]
[EndTime "10:37:03 PDT"]
[Termination "lucaskk818 won by checkmate"]

1. e4 {[%clk 0:04:58.4]} 1... e6 {[%clk 0:04:59.5]} 2. d4 {[%clk 0:04:56.5]}
2... d5 {[%clk 0:04:59.1]} 3. exd5 {[%clk 0:04:54.8]} 3... exd5 {[%clk 0:04:59]}
4. Nf3 {[%clk 0:04:53.7]} 4... Nf6 {[%clk 0:04:58.6]} 5. Bd3 {[%clk 0:04:52.3]}
5... c5 {[%clk 0:04:58.2]} 6. c3 {[%clk 0:04:47.3]} 6... c4 {[%clk 0:04:56.6]}
7. Be2 {[%clk 0:04:45.9]} 7... Be7 {[%clk 0:04:56.2]} 8. O-O {[%clk 0:04:44.8]}
8... O-O {[%clk 0:04:55.4]} 9. b3 {[%clk 0:04:44.2]} 9... cxb3 {[%clk
0:04:54.9]} 10. axb3 {[%clk 0:04:38.6]} 10... Nc6 {[%clk 0:04:53.6]} 11. c4
{[%clk 0:04:34.4]} 11... dxc4 {[%clk 0:04:51.6]} 12. bxc4 {[%clk 0:04:32.7]}
12... h6 {[%clk 0:04:44.6]} 13. d5 {[%clk 0:04:31.6]} 13... Nb4 {[%clk
0:04:35.4]} 14. Ba3 {[%clk 0:04:13.3]} 14... Na6 {[%clk 0:04:28.8]} 15. Bxe7
{[%clk 0:04:10.5]} 15... Qxe7 {[%clk 0:04:28.7]} 16. Nc3 {[%clk 0:04:00.9]}
16... Nc5 {[%clk 0:04:22.5]} 17. Qc2 {[%clk 0:03:59.2]} 17... a6 {[%clk
0:04:21]} 18. Rfe1 {[%clk 0:03:57]} 18... Qc7 {[%clk 0:04:08.3]} 19. Na4 {[%clk
0:03:49.9]} 19... Nxa4 {[%clk 0:04:03.8]} 20. Qxa4 {[%clk 0:03:47.5]} 20... Bd7
{[%clk 0:04:00.8]} 21. Qc2 {[%clk 0:03:42.8]} 21... Rac8 {[%clk 0:03:58]} 22.
Rac1 {[%clk 0:03:38.7]} 22... Nxd5 {[%clk 0:03:53.6]} 23. Qd2 {[%clk 0:03:08.8]}
23... Nf6 {[%clk 0:03:50]} 24. Bd3 {[%clk 0:03:07.3]} 24... Rfd8 {[%clk
0:03:43.2]} 25. Bb1 {[%clk 0:03:04.1]} 25... Bf5 {[%clk 0:03:32]} 26. Qb2 {[%clk
0:03:02.9]} 26... Bxb1 {[%clk 0:03:26.7]} 27. Qxb1 {[%clk 0:03:01.9]} 27... Qf4
{[%clk 0:03:15.6]} 28. Qxb7 {[%clk 0:02:40.5]} 28... Rxc4 {[%clk 0:02:59.3]} 29.
Rxc4 {[%clk 0:02:30.3]} 29... Qxc4 {[%clk 0:02:59.2]} 30. Qe7 {[%clk 0:02:23.6]}
30... Re8 {[%clk 0:02:43.3]} 31. Qa3 {[%clk 0:01:54.3]} 31... Rxe1+ {[%clk
0:02:37.1]} 32. Nxe1 {[%clk 0:01:53.2]} 32... Ne4 {[%clk 0:02:18.9]} 33. h3
{[%clk 0:01:27.5]} 33... Qe2 {[%clk 0:02:13.4]} 34. Nf3 {[%clk 0:01:12.1]} 34...
Qxf2+ {[%clk 0:02:05]} 35. Kh2 {[%clk 0:01:11.2]} 35... Qg3+ {[%clk 0:01:42.5]}
36. Kg1 {[%clk 0:01:05.9]} 36... Nd2 {[%clk 0:01:32.5]} 37. Qe7 {[%clk
0:00:29.4]} 37... Nxf3+ {[%clk 0:01:24.8]} 38. Kf1 {[%clk 0:00:22.2]} 38... Nh4
{[%clk 0:01:08.7]} 39. Qe8+ {[%clk 0:00:18.8]} 39... Kh7 {[%clk 0:01:05.4]} 40.
Qe4+ {[%clk 0:00:18.1]} 40... f5 {[%clk 0:01:00.8]} 41. Qe6 {[%clk 0:00:13.2]}
41... Qxg2+ {[%clk 0:00:58.6]} 42. Ke1 {[%clk 0:00:12.4]} 42... Nf3+ {[%clk
0:00:57.8]} 43. Kd1 {[%clk 0:00:11.3]} 43... Qd2# {[%clk 0:00:57.7]} 0-1